[Event "Titled Tuesday Blitz June 6 Late 2023"]
[White "Chos, Alexey"]
[Black "Rustemov, Alexander"]
[WhiteFideId "14117762"]
[BlackFideId "4119002"]
[WhiteElo "2234"]
[BlackElo "2850"]
[Result "0-1"]
[Round "4"]
[TimeControl "180+2"]
[Date "2023.06.07"]
[WhiteClock "0:00:15"]
[BlackClock "0:00:10"]
[Board "38"]

1. Nf3 {[%clk 0:03:00]}  d5 {[%clk 0:02:58]} 2. b3 {[%clk 0:03:00]}  Nf6 {[%clk 0:02:55]} 3. Bb2 {[%clk 0:03:00]}  Bf5 {[%clk 0:02:55]} 4. e3 {[%clk 0:03:01]}  h6 {[%clk 0:02:54]} 5. Be2 {[%clk 0:03:01]}  e6 {[%clk 0:02:54]} 6. O-O {[%clk 0:03:01]}  Be7 {[%clk 0:02:54]} 7. d4 {[%clk 0:03:02]}  O-O {[%clk 0:02:52]} 8. c4 {[%clk 0:03:02]}  c6 {[%clk 0:02:51]} 9. Nc3 {[%clk 0:03:02]}  Nbd7 {[%clk 0:02:51]} 10. Bd3 {[%clk 0:03:02]}  Ne4 {[%clk 0:02:48]} 11. Bxe4 {[%clk 0:03:00]}  Bxe4 {[%clk 0:02:46]} 12. Nxe4 {[%clk 0:02:59]}  dxe4 {[%clk 0:02:47]} 13. Nd2 {[%clk 0:03:00]}  f5 {[%clk 0:02:47]} 14. f3 {[%clk 0:03:00]}  exf3 {[%clk 0:02:38]} 15. Qxf3 {[%clk 0:03:01]}  Bb4 {[%clk 0:02:36]} 16. Rad1 {[%clk 0:02:55]}  Bxd2 {[%clk 0:02:35]} 17. Rxd2 {[%clk 0:02:55]}  Nf6 {[%clk 0:02:36]} 18. d5 {[%clk 0:02:51]}  Ne4 {[%clk 0:02:29]} 19. Rdd1 {[%clk 0:02:50]}  exd5 {[%clk 0:02:25]} 20. cxd5 {[%clk 0:02:51]}  cxd5 {[%clk 0:02:20]} 21. Qf4 {[%clk 0:02:48]}  Qd7 {[%clk 0:02:18]} 22. Qe5 {[%clk 0:02:47]}  Rad8 {[%clk 0:02:16]} 23. Rd3 {[%clk 0:02:41]}  Rf6 {[%clk 0:01:58]} 24. Rfd1 {[%clk 0:02:29]}  Rd6 {[%clk 0:01:55]} 25. Ba3 {[%clk 0:02:24]}  Re6 {[%clk 0:01:45]} 26. Qxf5 {[%clk 0:02:15]}  Nf6 {[%clk 0:01:38]} 27. Bb2 {[%clk 0:02:10]}  Rd6 {[%clk 0:01:37]} 28. Qxd7 {[%clk 0:02:01]}  R6xd7 {[%clk 0:01:36]} 29. Bxf6 {[%clk 0:02:00]}  gxf6 {[%clk 0:01:37]} 30. Rd4 {[%clk 0:02:01]}  Kf7 {[%clk 0:01:36]} 31. Rc1 {[%clk 0:01:55]}  Ke6 {[%clk 0:01:31]} 32. b4 {[%clk 0:01:55]}  Rd6 {[%clk 0:01:28]} 33. b5 {[%clk 0:01:55]}  f5 {[%clk 0:01:19]} 34. a4 {[%clk 0:01:53]}  a6 {[%clk 0:01:16]} 35. Rc7 {[%clk 0:01:47]}  R6d7 {[%clk 0:01:13]} 36. Rc5 {[%clk 0:01:45]}  axb5 {[%clk 0:01:10]} 37. axb5 {[%clk 0:01:46]}  b6 {[%clk 0:01:07]} 38. Rc6+ {[%clk 0:01:45]}  Rd6 {[%clk 0:01:08]} 39. Rc7 {[%clk 0:01:42]}  Ke5 {[%clk 0:01:04]} 40. Kf2 {[%clk 0:01:40]}  Ra8 {[%clk 0:01:04]} 41. Kf3 {[%clk 0:01:38]}  Ra5 {[%clk 0:01:03]} 42. Rb4 {[%clk 0:01:33]}  Ra2 {[%clk 0:00:58]} 43. Rg7 {[%clk 0:01:27]}  Rc2 {[%clk 0:00:51]} 44. Rh4 {[%clk 0:01:21]}  Rf6 {[%clk 0:00:42]} 45. Rh7 {[%clk 0:01:15]}  Rb2 {[%clk 0:00:38]} 46. R7xh6 {[%clk 0:01:10]}  Rxb5 {[%clk 0:00:37]} 47. Rh8 {[%clk 0:01:09]}  Rb1 {[%clk 0:00:34]} 48. Rd8 {[%clk 0:01:04]}  b5 {[%clk 0:00:31]} 49. Rhh8 {[%clk 0:01:03]}  Re6 {[%clk 0:00:25]} 50. Rb8 {[%clk 0:01:01]}  d4 {[%clk 0:00:23]} 51. Rhe8 {[%clk 0:00:54]}  d3 {[%clk 0:00:19]} 52. Rxe6+ {[%clk 0:00:48]}  Kxe6 {[%clk 0:00:20]} 53. Rd8 {[%clk 0:00:47]}  Rf1+ {[%clk 0:00:19]} 54. Kg3 {[%clk 0:00:46]}  Rd1 {[%clk 0:00:19]} 55. h4 {[%clk 0:00:45]}  b4 {[%clk 0:00:18]} 56. h5 {[%clk 0:00:44]}  Kf6 {[%clk 0:00:18]} 57. Kf2 {[%clk 0:00:37]}  b3 {[%clk 0:00:15]} 58. Rb8 {[%clk 0:00:35]}  Rd2+ {[%clk 0:00:13]} 59. Ke1 {[%clk 0:00:35]}  Re2+ {[%clk 0:00:13]} 60. Kd1 {[%clk 0:00:35]}  b2 {[%clk 0:00:13]} 61. h6 {[%clk 0:00:29]}  Kg6 {[%clk 0:00:13]} 62. Rb6+ {[%clk 0:00:29]}  Kh7 {[%clk 0:00:13]} 63. e4 {[%clk 0:00:23]}  fxe4 {[%clk 0:00:13]} 64. g4 {[%clk 0:00:23]}  Rg2 {[%clk 0:00:13]} 65. g5 {[%clk 0:00:21]}  Rxg5 {[%clk 0:00:12]} 66. Kd2 {[%clk 0:00:16]}  Rg2+ {[%clk 0:00:10]} 67. Ke3 {[%clk 0:00:16]}  Re2+ {[%clk 0:00:10]} 68. Kf4 {[%clk 0:00:16]}  d2 {[%clk 0:00:11]} 69. Kg5 {[%clk 0:00:16]}  Rg2+ {[%clk 0:00:10]} 70. Kf6 {[%clk 0:00:15]}  d1=Q {[%clk 0:00:10]} 71. Rb7+ {[%clk 0:00:15]}  Kxh6 {[%clk 0:00:10]} 0-1


[Site "https://www.chess.com"]

[Event "Titled Tuesday Blitz June 6 Late 2023"]
[White "Streltsov, Alexey"]
[Black "Pakleza, Zbigniew"]
[WhiteFideId "24104434"]
[BlackFideId "1119290"]
[WhiteElo "2566"]
[BlackElo "2410"]
[Result "0-1"]
[Round "4"]
[TimeControl "180+2"]
[Date "2023.06.07"]
[WhiteClock "0:00:07"]
[BlackClock "0:00:17"]
[Board "40"]

1. d4 {[%clk 0:03:00]}  d6 {[%clk 0:02:57]} 2. e4 {[%clk 0:03:00]}  Nf6 {[%clk 0:02:58]} 3. Nc3 {[%clk 0:03:00]}  c6 {[%clk 0:02:58]} 4. Nf3 {[%clk 0:02:59]}  Bg4 {[%clk 0:02:58]} 5. h3 {[%clk 0:02:58]}  Bh5 {[%clk 0:02:59]} 6. Be2 {[%clk 0:02:55]}  e6 {[%clk 0:02:57]} 7. Bf4 {[%clk 0:02:54]}  d5 {[%clk 0:02:56]} 8. exd5 {[%clk 0:02:41]}  cxd5 {[%clk 0:02:52]} 9. Nb5 {[%clk 0:02:38]}  Na6 {[%clk 0:02:52]} 10. c3 {[%clk 0:02:38]}  Be7 {[%clk 0:02:49]} 11. Ne5 {[%clk 0:02:31]}  Bxe2 {[%clk 0:02:47]} 12. Qxe2 {[%clk 0:02:31]}  O-O {[%clk 0:02:47]} 13. O-O {[%clk 0:02:24]}  Ne4 {[%clk 0:02:47]} 14. Nd3 {[%clk 0:02:15]}  Nd6 {[%clk 0:02:46]} 15. Nxd6 {[%clk 0:02:15]}  Bxd6 {[%clk 0:02:47]} 16. Rae1 {[%clk 0:02:14]}  Bxf4 {[%clk 0:02:36]} 17. Nxf4 {[%clk 0:02:15]}  Nb8 {[%clk 0:02:32]} 18. Qg4 {[%clk 0:02:13]}  Nc6 {[%clk 0:02:29]} 19. Nh5 {[%clk 0:02:12]}  g6 {[%clk 0:02:29]} 20. Re3 {[%clk 0:02:10]}  Kh8 {[%clk 0:02:13]} 21. Nf4 {[%clk 0:02:01]}  b5 {[%clk 0:02:13]} 22. Nd3 {[%clk 0:01:58]}  a5 {[%clk 0:02:11]} 23. a3 {[%clk 0:01:40]}  b4 {[%clk 0:02:06]} 24. axb4 {[%clk 0:01:32]}  axb4 {[%clk 0:02:07]} 25. cxb4 {[%clk 0:01:32]}  Rb8 {[%clk 0:01:51]} 26. Rf3 {[%clk 0:01:13]}  f5 {[%clk 0:01:19]} 27. Qf4 {[%clk 0:01:07]}  Qf6 {[%clk 0:01:19]} 28. Ne5 {[%clk 0:00:55]}  Nxe5 {[%clk 0:01:19]} 29. dxe5 {[%clk 0:00:56]}  Qe7 {[%clk 0:01:20]} 30. Rb3 {[%clk 0:00:55]}  Rfc8 {[%clk 0:01:16]} 31. Rd1 {[%clk 0:00:44]}  g5 {[%clk 0:01:03]} 32. Qd2 {[%clk 0:00:33]}  Kg7 {[%clk 0:00:53]} 33. Ra1 {[%clk 0:00:32]}  Rc6 {[%clk 0:00:31]} 34. b5 {[%clk 0:00:20]}  Rcb6 {[%clk 0:00:30]} 35. Ra5 {[%clk 0:00:20]}  Kg6 {[%clk 0:00:28]} 36. g3 {[%clk 0:00:19]}  Qc5 {[%clk 0:00:24]} 37. h4 {[%clk 0:00:16]}  h6 {[%clk 0:00:24]} 38. hxg5 {[%clk 0:00:15]}  hxg5 {[%clk 0:00:25]} 39. Qd3 {[%clk 0:00:13]}  Qc1+ {[%clk 0:00:23]} 40. Kg2 {[%clk 0:00:14]}  Rh8 {[%clk 0:00:22]} 41. Kf3 {[%clk 0:00:11]}  Rh1 {[%clk 0:00:18]} 42. Rc3 {[%clk 0:00:11]}  g4+ {[%clk 0:00:18]} 43. Ke2 {[%clk 0:00:07]}  Re1# {[%clk 0:00:17]} 0-1


[Site "https://www.chess.com"]

[Event "Titled Tuesday Blitz June 6 Late 2023"]
[White "Kushko, Dmitriy"]
[Black "Ozates, Tuna"]
[WhiteFideId "14162261"]
[BlackFideId "6354521"]
[WhiteElo "2230"]
[BlackElo "2151"]
[Result "1-0"]
[Round "4"]
[TimeControl "180+2"]
[Date "2023.06.07"]
[WhiteClock "0:01:18"]
[BlackClock "0:00:06"]
[Board "45"]

1. Nf3 {[%clk 0:03:00]}  c5 {[%clk 0:02:16]} 2. g3 {[%clk 0:02:59]}  Nc6 {[%clk 0:02:17]} 3. Bg2 {[%clk 0:02:59]}  g6 {[%clk 0:02:17]} 4. c4 {[%clk 0:02:59]}  Bg7 {[%clk 0:02:17]} 5. Nc3 {[%clk 0:03:00]}  d6 {[%clk 0:02:17]} 6. a3 {[%clk 0:02:59]}  e5 {[%clk 0:02:16]} 7. b4 {[%clk 0:02:54]}  cxb4 {[%clk 0:02:14]} 8. axb4 {[%clk 0:02:54]}  Nge7 {[%clk 0:02:11]} 9. b5 {[%clk 0:02:52]}  Nd4 {[%clk 0:02:11]} 10. Ba3 {[%clk 0:02:44]}  Nef5 {[%clk 0:02:04]} 11. e3 {[%clk 0:02:34]}  Nxf3+ {[%clk 0:02:01]} 12. Bxf3 {[%clk 0:02:34]}  O-O {[%clk 0:02:01]} 13. O-O {[%clk 0:02:33]}  Rb8 {[%clk 0:01:57]} 14. Bb4 {[%clk 0:02:14]}  Be6 {[%clk 0:01:55]} 15. d3 {[%clk 0:02:10]}  a6 {[%clk 0:01:52]} 16. bxa6 {[%clk 0:02:00]}  bxa6 {[%clk 0:01:53]} 17. Qa4 {[%clk 0:02:01]}  Bd7 {[%clk 0:01:48]} 18. Qa3 {[%clk 0:02:00]}  Re8 {[%clk 0:01:31]} 19. Rfb1 {[%clk 0:01:57]}  Bf8 {[%clk 0:01:23]} 20. Qxa6 {[%clk 0:01:46]}  Qg5 {[%clk 0:01:06]} 21. Ne4 {[%clk 0:01:41]}  Qd8 {[%clk 0:00:54]} 22. Ba5 {[%clk 0:01:25]}  Rxb1+ {[%clk 0:00:44]} 23. Rxb1 {[%clk 0:01:24]}  Qe7 {[%clk 0:00:39]} 24. Rb7 {[%clk 0:01:19]}  Kg7 {[%clk 0:00:22]} 25. Qa7 {[%clk 0:01:19]}  d5 {[%clk 0:00:06]} 26. Rxd7 {[%clk 0:01:18]}  Qa3 {[%clk 0:00:05]} 27. Rxf7+ {[%clk 0:01:18]}  Kg8 {[%clk 0:00:06]} 28. Nf6+ {[%clk 0:01:18]} 1-0


[Site "https://www.chess.com"]

[Event "Titled Tuesday Blitz June 6 Late 2023"]
[White "Horvath, Dominik"]
[Black "WindWhistler11"]
[WhiteFideId "1642561"]
[WhiteElo "2407"]
[BlackElo "2542"]
[Result "1-0"]
[Round "4"]
[TimeControl "180+2"]
[Date "2023.06.07"]
[WhiteClock "0:00:15"]
[BlackClock "0:00:08"]
[Board "48"]

1. e4 {[%clk 0:03:00]}  e6 {[%clk 0:02:56]} 2. d4 {[%clk 0:02:59]}  d5 {[%clk 0:02:57]} 3. Nd2 {[%clk 0:02:57]}  Nf6 {[%clk 0:02:57]} 4. e5 {[%clk 0:02:57]}  Nfd7 {[%clk 0:02:58]} 5. Bd3 {[%clk 0:02:57]}  c5 {[%clk 0:02:59]} 6. c3 {[%clk 0:02:58]}  Nc6 {[%clk 0:03:00]} 7. Ne2 {[%clk 0:02:58]}  Be7 {[%clk 0:03:00]} 8. O-O {[%clk 0:02:58]}  b6 {[%clk 0:03:00]} 9. a4 {[%clk 0:02:55]}  Bb7 {[%clk 0:02:57]} 10. Nf3 {[%clk 0:02:54]}  Qc7 {[%clk 0:02:53]} 11. Re1 {[%clk 0:02:53]}  O-O-O {[%clk 0:02:43]} 12. Nf4 {[%clk 0:02:47]}  Rdg8 {[%clk 0:02:32]} 13. c4 {[%clk 0:02:41]}  g5 {[%clk 0:02:12]} 14. cxd5 {[%clk 0:02:41]}  gxf4 {[%clk 0:02:12]} 15. dxc6 {[%clk 0:02:41]}  Bxc6 {[%clk 0:02:12]} 16. Be4 {[%clk 0:02:40]}  Rg4 {[%clk 0:01:56]} 17. d5 {[%clk 0:02:23]}  exd5 {[%clk 0:01:53]} 18. Bf5 {[%clk 0:02:19]}  Rg7 {[%clk 0:01:45]} 19. Bxf4 {[%clk 0:02:15]}  Kb7 {[%clk 0:01:35]} 20. Bg3 {[%clk 0:02:04]}  Qd8 {[%clk 0:01:27]} 21. a5 {[%clk 0:02:03]}  Nf8 {[%clk 0:01:21]} 22. axb6 {[%clk 0:02:00]}  Qxb6 {[%clk 0:01:14]} 23. b4 {[%clk 0:01:49]}  cxb4 {[%clk 0:01:08]} 24. Nd4 {[%clk 0:01:46]}  Ne6 {[%clk 0:01:05]} 25. Nxc6 {[%clk 0:01:44]}  Qxc6 {[%clk 0:01:04]} 26. Qe2 {[%clk 0:01:25]}  Rc8 {[%clk 0:00:53]} 27. Bd3 {[%clk 0:01:20]}  Nc5 {[%clk 0:00:47]} 28. Bb5 {[%clk 0:01:16]}  Qb6 {[%clk 0:00:47]} 29. Reb1 {[%clk 0:01:01]}  a5 {[%clk 0:00:43]} 30. Bf4 {[%clk 0:00:52]}  Ne4 {[%clk 0:00:40]} 31. Be3 {[%clk 0:00:41]}  Nc3 {[%clk 0:00:41]} 32. Bxb6 {[%clk 0:00:16]}  Nxe2+ {[%clk 0:00:41]} 33. Bxe2 {[%clk 0:00:17]}  Kxb6 {[%clk 0:00:41]} 34. Rd1 {[%clk 0:00:18]}  Rd8 {[%clk 0:00:40]} 35. Rd3 {[%clk 0:00:15]}  Rg4 {[%clk 0:00:30]} 36. Bxg4 {[%clk 0:00:15]}  Bc5 {[%clk 0:00:24]} 37. Bf3 {[%clk 0:00:15]}  d4 {[%clk 0:00:21]} 38. Bd1 {[%clk 0:00:16]}  Rd5 {[%clk 0:00:19]} 39. f4 {[%clk 0:00:15]}  Kb5 {[%clk 0:00:17]} 40. Ba4+ {[%clk 0:00:15]}  Kc4 {[%clk 0:00:17]} 41. Bb3+ {[%clk 0:00:16]}  Kxd3 {[%clk 0:00:18]} 42. Bxd5 {[%clk 0:00:17]}  Kc2 {[%clk 0:00:17]} 43. Ra2+ {[%clk 0:00:15]}  Kc1 {[%clk 0:00:17]} 44. Bb3 {[%clk 0:00:13]}  d3+ {[%clk 0:00:15]} 45. Kf1 {[%clk 0:00:13]}  Be3 {[%clk 0:00:16]} 46. Ba4 {[%clk 0:00:12]}  Bxf4 {[%clk 0:00:15]} 47. g3 {[%clk 0:00:12]}  Bxe5 {[%clk 0:00:15]} 48. Rf2 {[%clk 0:00:10]}  Bc3 {[%clk 0:00:15]} 49. Rxf7 {[%clk 0:00:10]}  b3 {[%clk 0:00:15]} 50. Bxb3 {[%clk 0:00:10]}  Kb2 {[%clk 0:00:14]} 51. Ba4 {[%clk 0:00:10]}  Ka3 {[%clk 0:00:14]} 52. Bd1 {[%clk 0:00:11]}  d2 {[%clk 0:00:13]} 53. Rd7 {[%clk 0:00:11]}  Kb2 {[%clk 0:00:13]} 54. Ke2 {[%clk 0:00:12]}  Kc1 {[%clk 0:00:12]} 55. Rb7 {[%clk 0:00:12]}  Bb4 {[%clk 0:00:11]} 56. Rc7+ {[%clk 0:00:12]}  Kb2 {[%clk 0:00:11]} 57. Kd3 {[%clk 0:00:13]}  Ka3 {[%clk 0:00:12]} 58. Kc2 {[%clk 0:00:13]}  a4 {[%clk 0:00:10]} 59. Ra7 {[%clk 0:00:13]}  Bd6 {[%clk 0:00:11]} 60. Ra6 {[%clk 0:00:13]}  Bb4 {[%clk 0:00:10]} 61. Kd3 {[%clk 0:00:13]}  Kb2 {[%clk 0:00:09]} 62. Rxa4 {[%clk 0:00:14]}  Kc1 {[%clk 0:00:09]} 63. Rxb4 {[%clk 0:00:14]}  h5 {[%clk 0:00:10]} 64. h4 {[%clk 0:00:14]}  Kxd1 {[%clk 0:00:08]} 65. Rb1# {[%clk 0:00:15]} 1-0


[Site "https://www.chess.com"]

[Event "Titled Tuesday Blitz June 6 Late 2023"]
[White "benny_aizenberg"]
[Black "Jimenez Almeida, Luis David"]
[BlackFideId "22242244"]
[WhiteElo "2714"]
[BlackElo "2245"]
[Result "1-0"]
[Round "4"]
[TimeControl "180+2"]
[Date "2023.06.07"]
[WhiteClock "0:00:17"]
[BlackClock "0:00:12"]
[Board "53"]

1. d4 {[%clk 0:02:58]}  g6 {[%clk 0:02:59]} 2. e4 {[%clk 0:02:53]}  Bg7 {[%clk 0:02:58]} 3. Nc3 {[%clk 0:02:53]}  c5 {[%clk 0:02:58]} 4. dxc5 {[%clk 0:02:50]}  Qa5 {[%clk 0:02:57]} 5. Ne2 {[%clk 0:02:48]}  Nf6 {[%clk 0:02:50]} 6. Ng3 {[%clk 0:02:37]}  Qxc5 {[%clk 0:02:46]} 7. Be3 {[%clk 0:02:36]}  Qb4 {[%clk 0:02:38]} 8. a3 {[%clk 0:02:20]}  Qa5 {[%clk 0:02:26]} 9. Bc4 {[%clk 0:01:55]}  d6 {[%clk 0:02:23]} 10. f3 {[%clk 0:01:44]}  a6 {[%clk 0:02:19]} 11. Qd2 {[%clk 0:01:41]}  O-O {[%clk 0:02:16]} 12. Bh6 {[%clk 0:01:28]}  b5 {[%clk 0:02:06]} 13. Bb3 {[%clk 0:01:18]}  b4 {[%clk 0:01:56]} 14. Nd5 {[%clk 0:00:38]}  Nxd5 {[%clk 0:01:38]} 15. Bxg7 {[%clk 0:00:29]}  Kxg7 {[%clk 0:01:16]} 16. Bxd5 {[%clk 0:00:29]}  Ra7 {[%clk 0:01:13]} 17. Qd4+ {[%clk 0:00:29]}  e5 {[%clk 0:01:06]} 18. Qxa7 {[%clk 0:00:30]}  bxa3+ {[%clk 0:01:06]} 19. Kf2 {[%clk 0:00:28]}  Qd2+ {[%clk 0:01:02]} 20. Ne2 {[%clk 0:00:28]}  axb2 {[%clk 0:01:02]} 21. Rab1 {[%clk 0:00:23]}  Nd7 {[%clk 0:00:40]} 22. Rxb2 {[%clk 0:00:22]}  Nc5 {[%clk 0:00:37]} 23. Qb6 {[%clk 0:00:18]}  f5 {[%clk 0:00:22]} 24. Qb4 {[%clk 0:00:17]}  Nxe4+ {[%clk 0:00:20]} 25. Bxe4 {[%clk 0:00:17]}  Qxb4 {[%clk 0:00:19]} 26. Rxb4 {[%clk 0:00:18]}  fxe4 {[%clk 0:00:20]} 27. Rxe4 {[%clk 0:00:18]}  Bf5 {[%clk 0:00:20]} 28. Ra4 {[%clk 0:00:18]}  Rc8 {[%clk 0:00:16]} 29. c3 {[%clk 0:00:17]}  Rc6 {[%clk 0:00:16]} 30. Rha1 {[%clk 0:00:16]}  Bd3 {[%clk 0:00:16]} 31. Ke3 {[%clk 0:00:17]}  Bb5 {[%clk 0:00:15]} 32. Kd2 {[%clk 0:00:16]}  d5 {[%clk 0:00:15]} 33. Ra5 {[%clk 0:00:17]}  h5 {[%clk 0:00:14]} 34. Nc1 {[%clk 0:00:17]}  e4 {[%clk 0:00:14]} 35. fxe4 {[%clk 0:00:17]}  dxe4 {[%clk 0:00:15]} 36. Nb3 {[%clk 0:00:17]}  Rf6 {[%clk 0:00:15]} 37. Ke3 {[%clk 0:00:17]}  Rd6 {[%clk 0:00:13]} 38. Nd4 {[%clk 0:00:16]}  Bd3 {[%clk 0:00:13]} 39. Rc5 {[%clk 0:00:15]}  Rf6 {[%clk 0:00:13]} 40. Rc7+ {[%clk 0:00:15]}  Kh6 {[%clk 0:00:13]} 41. Rc6 {[%clk 0:00:15]}  Rf8 {[%clk 0:00:13]} 42. Raxa6 {[%clk 0:00:15]}  Bxa6 {[%clk 0:00:13]} 43. Rxa6 {[%clk 0:00:16]}  Rc8 {[%clk 0:00:13]} 44. Ne2 {[%clk 0:00:16]}  Rc4 {[%clk 0:00:12]} 45. Re6 {[%clk 0:00:16]}  Kg5 {[%clk 0:00:11]} 46. Rxe4 {[%clk 0:00:16]}  Rc6 {[%clk 0:00:12]} 47. Re5+ {[%clk 0:00:16]}  Kg4 {[%clk 0:00:12]} 48. h3+ {[%clk 0:00:16]}  Kh4 {[%clk 0:00:12]} 49. Re4+ {[%clk 0:00:16]}  Kg5 {[%clk 0:00:12]} 50. h4+ {[%clk 0:00:17]}  Kf5 {[%clk 0:00:12]} 51. Nd4+ {[%clk 0:00:17]} 1-0


[Site "https://www.chess.com"]

[Event "Titled Tuesday Blitz June 6 Late 2023"]
[White "Wagner, Dennis"]
[Black "D`Arruda, Ricardo D."]
[WhiteFideId "24650684"]
[BlackFideId "100692"]
[WhiteElo "2478"]
[BlackElo "2535"]
[Result "1-0"]
[Round "4"]
[TimeControl "180+2"]
[Date "2023.06.07"]
[WhiteClock "0:00:04"]
[BlackClock "0:00:13"]
[Board "54"]

1. d4 {[%clk 0:03:00]}  Nf6 {[%clk 0:02:55]} 2. Nf3 {[%clk 0:03:00]}  g6 {[%clk 0:02:54]} 3. c4 {[%clk 0:02:58]}  d6 {[%clk 0:02:54]} 4. Nc3 {[%clk 0:02:58]}  Bg7 {[%clk 0:02:54]} 5. e4 {[%clk 0:02:59]}  O-O {[%clk 0:02:54]} 6. Be2 {[%clk 0:03:00]}  Bg4 {[%clk 0:02:54]} 7. Be3 {[%clk 0:02:58]}  Bxf3 {[%clk 0:02:53]} 8. Bxf3 {[%clk 0:02:56]}  e5 {[%clk 0:02:53]} 9. d5 {[%clk 0:02:55]}  Nbd7 {[%clk 0:02:53]} 10. g4 {[%clk 0:02:44]}  Ne8 {[%clk 0:02:46]} 11. h4 {[%clk 0:02:40]}  h6 {[%clk 0:02:39]} 12. Qd2 {[%clk 0:02:39]}  Kh7 {[%clk 0:02:36]} 13. O-O-O {[%clk 0:02:34]}  a5 {[%clk 0:02:35]} 14. Kb1 {[%clk 0:02:34]}  Nc5 {[%clk 0:02:35]} 15. Ne2 {[%clk 0:02:27]}  Qe7 {[%clk 0:02:25]} 16. Ng3 {[%clk 0:02:26]}  c6 {[%clk 0:02:20]} 17. h5 {[%clk 0:02:19]}  g5 {[%clk 0:02:20]} 18. Nf5 {[%clk 0:02:20]}  Qc7 {[%clk 0:02:18]} 19. dxc6 {[%clk 0:01:08]}  Qxc6 {[%clk 0:01:51]} 20. Nxd6 {[%clk 0:00:39]}  Rd8 {[%clk 0:01:41]} 21. Qd5 {[%clk 0:00:30]}  Rxd6 {[%clk 0:01:17]} 22. Qxc5 {[%clk 0:00:29]}  Rf6 {[%clk 0:00:54]} 23. Qxc6 {[%clk 0:00:27]}  bxc6 {[%clk 0:00:55]} 24. Be2 {[%clk 0:00:24]}  Nd6 {[%clk 0:00:52]} 25. c5 {[%clk 0:00:21]}  Nb7 {[%clk 0:00:50]} 26. Rd7 {[%clk 0:00:20]}  Rb8 {[%clk 0:00:50]} 27. Rhd1 {[%clk 0:00:15]}  Bf8 {[%clk 0:00:50]} 28. Rc1 {[%clk 0:00:08]}  Kg8 {[%clk 0:00:50]} 29. b3 {[%clk 0:00:06]}  Re6 {[%clk 0:00:45]} 30. Ba6 {[%clk 0:00:06]}  Re7 {[%clk 0:00:44]} 31. Rxe7 {[%clk 0:00:06]}  Bxe7 {[%clk 0:00:45]} 32. Kb2 {[%clk 0:00:03]}  a4 {[%clk 0:00:40]} 33. b4 {[%clk 0:00:02]}  Nd8 {[%clk 0:00:37]} 34. Kc3 {[%clk 0:00:02]}  a3 {[%clk 0:00:34]} 35. Bc4 {[%clk 0:00:03]}  Kf8 {[%clk 0:00:30]} 36. Rb1 {[%clk 0:00:02]}  Ne6 {[%clk 0:00:28]} 37. Bxe6 {[%clk 0:00:02]}  fxe6 {[%clk 0:00:29]} 38. Rb3 {[%clk 0:00:02]}  Ra8 {[%clk 0:00:28]} 39. Bc1 {[%clk 0:00:03]}  Rd8 {[%clk 0:00:25]} 40. Rxa3 {[%clk 0:00:03]}  Rd4 {[%clk 0:00:25]} 41. f3 {[%clk 0:00:04]}  Rd1 {[%clk 0:00:26]} 42. Be3 {[%clk 0:00:04]}  Rf1 {[%clk 0:00:26]} 43. Kd3 {[%clk 0:00:04]}  Rxf3 {[%clk 0:00:26]} 44. Ra8+ {[%clk 0:00:04]}  Kf7 {[%clk 0:00:25]} 45. a4 {[%clk 0:00:05]}  Rf1 {[%clk 0:00:15]} 46. a5 {[%clk 0:00:05]}  Ra1 {[%clk 0:00:16]} 47. a6 {[%clk 0:00:05]}  Ra3+ {[%clk 0:00:14]} 48. Ke2 {[%clk 0:00:05]}  Ra2+ {[%clk 0:00:14]} 49. Bd2 {[%clk 0:00:06]}  Ra3 {[%clk 0:00:13]} 50. Kd1 {[%clk 0:00:05]}  Ra2 {[%clk 0:00:13]} 51. Bc3 {[%clk 0:00:05]}  Bd8 {[%clk 0:00:13]} 52. Rxd8 {[%clk 0:00:05]}  Rxa6 {[%clk 0:00:12]} 53. Rd7+ {[%clk 0:00:05]}  Kf6 {[%clk 0:00:12]} 54. Rd6 {[%clk 0:00:04]}  Ra3 {[%clk 0:00:12]} 55. Kc2 {[%clk 0:00:04]}  Ra2+ {[%clk 0:00:13]} 56. Kb3 {[%clk 0:00:05]}  Ra4 {[%clk 0:00:13]} 57. Kxa4 {[%clk 0:00:04]} 1-0


[Site "https://www.chess.com"]

[Event "Titled Tuesday Blitz June 6 Late 2023"]
[White "Seletsky, Grigory"]
[Black "Matinian, Nikita"]
[WhiteFideId "14112191"]
[BlackFideId "24129100"]
[WhiteElo "2491"]
[BlackElo "2422"]
[Result "0-1"]
[Round "4"]
[TimeControl "180+2"]
[Date "2023.06.07"]
[WhiteClock "0:00:20"]
[BlackClock "0:01:06"]
[Board "59"]

1. e4 {[%clk 0:02:41]}  g6 {[%clk 0:02:58]} 2. d4 {[%clk 0:02:37]}  d6 {[%clk 0:02:59]} 3. c4 {[%clk 0:02:37]}  Bg7 {[%clk 0:02:58]} 4. Nc3 {[%clk 0:02:36]}  Nc6 {[%clk 0:02:58]} 5. Be3 {[%clk 0:02:36]}  e5 {[%clk 0:02:57]} 6. Nge2 {[%clk 0:02:34]}  exd4 {[%clk 0:02:57]} 7. Nxd4 {[%clk 0:02:34]}  Nge7 {[%clk 0:02:58]} 8. Be2 {[%clk 0:02:33]}  O-O {[%clk 0:02:57]} 9. O-O {[%clk 0:02:32]}  f5 {[%clk 0:02:57]} 10. exf5 {[%clk 0:02:32]}  Bxd4 {[%clk 0:02:58]} 11. Bxd4 {[%clk 0:02:31]}  Nxf5 {[%clk 0:02:59]} 12. Be3 {[%clk 0:02:20]}  Nxe3 {[%clk 0:02:55]} 13. fxe3 {[%clk 0:02:20]}  Rxf1+ {[%clk 0:02:55]} 14. Qxf1 {[%clk 0:02:11]}  Be6 {[%clk 0:02:56]} 15. Qf4 {[%clk 0:02:08]}  Qe7 {[%clk 0:02:56]} 16. Rf1 {[%clk 0:02:07]}  Re8 {[%clk 0:02:56]} 17. Rf3 {[%clk 0:01:45]}  Ne5 {[%clk 0:02:28]} 18. Rg3 {[%clk 0:01:43]}  Rf8 {[%clk 0:02:27]} 19. Qh6 {[%clk 0:01:35]}  Qf7 {[%clk 0:02:20]} 20. h4 {[%clk 0:01:24]}  Bxc4 {[%clk 0:01:59]} 21. Bxc4 {[%clk 0:01:20]}  Qxc4 {[%clk 0:02:00]} 22. Qg5 {[%clk 0:01:06]}  Qf1+ {[%clk 0:01:48]} 23. Kh2 {[%clk 0:01:05]}  Qf5 {[%clk 0:01:47]} 24. Nd5 {[%clk 0:01:01]}  Qxg5 {[%clk 0:01:44]} 25. hxg5 {[%clk 0:00:55]}  c6 {[%clk 0:01:44]} 26. Nf6+ {[%clk 0:00:54]}  Kg7 {[%clk 0:01:45]} 27. Rh3 {[%clk 0:00:52]}  h5 {[%clk 0:01:45]} 28. Kg3 {[%clk 0:00:40]}  Nc4 {[%clk 0:01:34]} 29. b3 {[%clk 0:00:40]}  Nxe3 {[%clk 0:01:33]} 30. Rh1 {[%clk 0:00:34]}  d5 {[%clk 0:01:19]} 31. Re1 {[%clk 0:00:25]}  d4 {[%clk 0:01:18]} 32. b4 {[%clk 0:00:23]}  Rd8 {[%clk 0:01:07]} 33. Kf4 {[%clk 0:00:20]}  Nxg2+ {[%clk 0:01:06]} 0-1


[Site "https://www.chess.com"]